fUST/lending_fUST_20251208
["ID","MTS","AMOUNT","RATE_DAILY","PERIOD"]
[397243111,1765159655901,-500.0,8.329e-05,2]
[397243112,1765159655921,-500.0,8.329e-05,2]
[397243113,1765159655942,-500.0,8.329e-05,2]
[397243114,1765159655962,-500.0,8.329e-05,2]
[397243115,1765159655981,-500.0,8.329e-05,2]
[397243116,1765159656001,-500.0,8.329e-05,2]
[397243117,1765159656020,-500.0,8.329e-05,2]
[397243118,1765159656039,-500.0,8.329e-05,2]
[397243119,1765159656060,-472.89034138,8.329e-05,2]
[397243120,1765159656080,-500.0,8.329e-05,2]
[397243121,1765159656100,-500.0,8.329e-05,2]
[397243122,1765159656120,-500.0,8.329e-05,2]
[397243123,1765159656141,-500.0,8.329e-05,2]
[397243124,1765159656160,-500.0,8.329e-05,2]
[397243125,1765159656180,-500.0,8.329e-05,2]
[397243126,1765159656199,-500.0,8.329e-05,2]
[397243127,1765159656220,-500.0,8.329e-05,2]
[397243128,1765159656240,-500.0,8.329e-05,2]
[397243129,1765159656260,-500.0,8.329e-05,2]
[397243130,1765159656280,-500.0,8.329e-05,2]
[397243131,1765159656300,-500.0,8.329e-05,2]
[397243132,1765159656320,-500.0,8.329e-05,2]
[397243133,1765159656340,-500.0,8.329e-05,2]
[397243134,1765159656365,-500.0,8.329e-05,2]
[397243135,1765159656385,-500.0,8.329e-05,2]
[397243136,1765159656406,-500.0,8.329e-05,2]
[397243137,1765159656425,-500.0,8.329e-05,2]
[397243138,1765159656448,-500.0,8.329e-05,2]
[397243139,1765159656468,-500.0,8.329e-05,2]
[397243140,1765159656489,-500.0,8.329e-05,2]
[397243141,1765159656510,-500.0,8.329e-05,2]
[397243142,1765159656740,-422.42257742,8.329e-05,2]
[397243143,1765159656767,-500.0,8.329e-05,2]
[397243144,1765159656792,-500.0,8.329e-05,2]
[397243145,1765159656816,-500.0,8.329e-05,2]
[397243146,1765159656838,-500.0,8.329e-05,2]
[397243147,1765159656861,-605.70528864,8.329e-05,2]
[397243148,1765159656882,-5165.76,8.33e-05,2]
[397243149,1765159656902,-986.19,8.33e-05,2]
[397243150,1765159656922,-607.27,8.33e-05,2]
[397243151,1765159656942,-500.0,8.33e-05,2]
[397243152,1765159656962,-6305.9,8.33e-05,2]
[397243153,1765159656983,-4387.28,8.33e-05,2]
[397243154,1765159657005,-500.0,8.33e-05,2]
[397243155,1765159657026,-500.0,8.33e-05,2]
[397243156,1765159657046,-1754.53,8.33e-05,2]
[397243157,1765159657065,-1723.51,8.33e-05,2]
[397243158,1765159657085,-665.05,8.331e-05,2]
[397243159,1765159657104,-1559.29,8.331e-05,2]
[397243160,1765159657123,-1369.37,8.331e-05,2]
[397243161,1765159657145,-501.7677077,8.331e-05,2]
[397243162,1765159657164,-500.0,8.331e-05,2]
[397243163,1765159657185,-500.0,8.331e-05,2]
[397243164,1765159657204,-1218.56,8.331e-05,2]
[397243165,1765159657226,-2510.15933479,8.331e-05,2]
[397243179,1765159744094,250.0,9.999e-05,3]
[397243180,1765159746103,-150.0,6.798e-05,2]
[397243181,1765159746124,-241.97,7.122e-05,2]
[397243182,1765159746144,-362.95,7.445e-05,2]
[397243183,1765159746164,-483.93,7.769e-05,2]
[397243184,1765159746184,-604.92,8.093e-05,2]
[397243185,1765159746203,-300.0,8.328e-05,2]
[397243186,1765159746222,-500.0,8.329e-05,2]
[397243187,1765159746241,-410.27619547,8.329e-05,2]
[397243243,1765159832273,-150.0,6.797e-05,2]
[397243245,1765159832287,-105.49749186,6.797e-05,2]
[397243248,1765159832300,-103.50250814,6.797e-05,2]
[397243250,1765159832311,-195.03,7.121e-05,2]
[397243252,1765159832320,-292.55,7.444e-05,2]
[397243254,1765159832329,-338.18,7.768e-05,2]
[397243257,1765159832350,-51.89,7.768e-05,2]
[397243259,1765159832360,-487.59,8.092e-05,2]
[397243261,1765159832370,-300.0,8.328e-05,2]
[397243263,1765159832379,-136.24973871,8.329e-05,2]
[397243353,1765159838287,-486.45406582,8.329e-05,2]
[397243355,1765159838297,-571.92011633,8.329e-05,2]
[397243357,1765159838307,-5017.96,8.329e-05,2]
[397243358,1765159838316,-612.86846744,8.329e-05,2]
[397243360,1765159838328,-554.92153256,8.329e-05,2]
[397243362,1765159838338,-945.1,8.329e-05,2]
[397243364,1765159838347,-55.69882603,8.329e-05,2]
[397243366,1765159838371,-326.93934112,8.329e-05,2]
[397243368,1765159838383,-199.33183285,8.329e-05,2]
[397243370,1765159838392,-457.88550681,8.329e-05,2]
[397243372,1765159838406,-42.11449319,8.329e-05,2]
[397243374,1765159838418,-278.6932006,8.329e-05,2]
[397243376,1765159838431,-2047.98103264,8.329e-05,2]
[397243377,1765159838443,-3716.47576676,8.329e-05,2]
[397243379,1765159838453,-6591.63,8.329e-05,2]
[397243381,1765159838463,-640.72,8.329e-05,2]
[397243383,1765159838473,-4204.48,8.329e-05,2]
[397243385,1765159838483,-1051.08,8.329e-05,2]
[397243386,1765159838494,-1713.4,8.329e-05,2]
[397243388,1765159838504,-660.42,8.329e-05,2]
[397243390,1765159838513,-3268.18,8.329e-05,2]
[397243392,1765159838522,-500.0,8.329e-05,2]
[397243393,1765159838532,-258.20997058,8.33e-05,2]
[397243395,1765159838541,-500.0,8.33e-05,2]
[397243397,1765159838551,-500.0,8.33e-05,2]
[397243399,1765159838561,-1479.55,8.33e-05,2]
[397243400,1765159838570,-330.35301956,8.33e-05,2]
[397243401,1765159838581,-308.50698044,8.33e-05,2]
[397243402,1765159838590,-5273.64906776,8.33e-05,2]
[397243403,1765159838601,-870.68093224,8.33e-05,2]
[397243404,1765159838611,-609.65,8.33e-05,2]
[397243405,1765159838620,-1004.98,8.33e-05,2]
[397243406,1765159838629,-936.17,8.33e-05,2]
[397243407,1765159838639,-2216.76,8.33e-05,2]
[397243408,1765159838648,-2068.66,8.33e-05,2]
[397243409,1765159838657,-500.0,8.33e-05,2]
[397243410,1765159838666,-1256.23,8.33e-05,2]
[397243411,1765159838676,-500.0,8.33e-05,2]
[397243412,1765159838685,-500.0,8.33e-05,2]
[397243413,1765159838695,-500.0,8.33e-05,2]
[397243414,1765159838704,-818.89,8.33e-05,2]
[397243415,1765159838713,-892.44,8.33e-05,2]
[397243416,1765159838722,-750.75,8.331e-05,2]
[397243417,1765159838732,-626.51,8.331e-05,2]
[397243418,1765159838741,-725.49,8.331e-05,2]
[397243419,1765159838749,-3209.24057922,8.331e-05,2]
[397243420,1765159838762,-422.24942078,8.331e-05,2]
[397243421,1765159838771,-589.03,8.331e-05,2]
[397243422,1765159838780,-500.91823678,8.331e-05,2]
[397243423,1765159838788,-500.0,8.331e-05,2]
[397243424,1765159838798,-644.55,8.331e-05,2]
[397243425,1765159838807,-500.0,8.331e-05,2]
[397243426,1765159838816,-823.13,8.331e-05,2]
[397243427,1765159838825,-1565.76,8.331e-05,2]
[397243428,1765159838835,-869.33,8.331e-05,2]
[397243429,1765159838844,-295.6958042,8.332e-05,2]
[397243430,1765159838853,-500.0,8.333e-05,2]
[397243431,1765159838862,-500.0,8.333e-05,2]
[397243432,1765159838871,-500.0,8.333e-05,2]
[397243433,1765159838880,-500.0,8.333e-05,2]
[397243434,1765159838889,-1474.49,8.333e-05,2]
[397243435,1765159838898,-500.0,8.333e-05,2]
[397243436,1765159838907,-500.0,8.333e-05,2]
[397243437,1765159838915,-500.0,8.333e-05,2]
[397243438,1765159838925,-531.95,8.333e-05,2]
[397243439,1765159838934,-500.0,8.333e-05,2]
[397243440,1765159838944,-500.0,8.333e-05,2]
[397243441,1765159838954,-500.0,8.333e-05,2]
[397243442,1765159838963,-123.61216584,8.333e-05,2]
[397243784,1765159842714,-445.17783416,8.333e-05,2]
[397243787,1765159842724,-500.0,8.333e-05,2]
[397243790,1765159842733,-557.89,8.333e-05,2]
[397243792,1765159842742,-643.45,8.333e-05,2]
[397243794,1765159842751,-500.0,8.333e-05,2]
[397243796,1765159842760,-500.0,8.333e-05,2]
[397243798,1765159842770,-500.0,8.333e-05,2]
[397243800,1765159842779,-568.51,8.333e-05,2]
[397243802,1765159842788,-500.0,8.333e-05,2]
[397243804,1765159842798,-500.0,8.333e-05,2]
[397243806,1765159842807,-502.01,8.333e-05,2]
[397243807,1765159842817,-500.0,8.333e-05,2]
[397243808,1765159842826,-555.06,8.333e-05,2]
[397243809,1765159842835,-500.0,8.333e-05,2]
[397243810,1765159842844,-500.0,8.333e-05,2]
[397243811,1765159842854,-1853.57,8.333e-05,2]
[397243812,1765159842863,-500.0,8.333e-05,2]
[397243813,1765159842873,-201.61526455,8.333e-05,2]
[397243814,1765159842885,-279.10748082,8.333e-05,2]
[397243815,1765159842897,-19.27725463,8.333e-05,2]
[397243816,1765159842907,-282.72274537,8.333e-05,2]
[397243856,1765159843471,-317.39725463,8.333e-05,2]
[397243858,1765159843481,-1206.37,8.333e-05,2]
[397243860,1765159843491,-547.2,8.333e-05,2]
[397243862,1765159843500,-500.0,8.333e-05,2]
[397243864,1765159843509,-500.0,8.333e-05,2]
[397243866,1765159843518,-500.0,8.333e-05,2]
[397243868,1765159843528,-500.0,8.333e-05,2]
[397243871,1765159843539,-857.63,8.333e-05,2]
[397243873,1765159843548,-500.0,8.333e-05,2]
[397243874,1765159843557,-500.0,8.333e-05,2]
[397243876,1765159843566,-500.0,8.333e-05,2]
[397243878,1765159843576,-500.0,8.333e-05,2]
[397243879,1765159843585,-500.0,8.333e-05,2]
[397243881,1765159843595,-845.41,8.333e-05,2]
[397243883,1765159843604,-756.53,8.333e-05,2]
[397243885,1765159843614,-595.42,8.333e-05,2]
[397243887,1765159843624,-500.0,8.333e-05,2]
[397243889,1765159843633,-500.0,8.333e-05,2]
[397243891,1765159843644,-500.0,8.333e-05,2]
[397243893,1765159843653,-500.0,8.333e-05,2]
[397243895,1765159843663,-501.72,8.333e-05,2]
[397243897,1765159843672,-500.43897036,8.333e-05,2]
[397243899,1765159843683,-1305.6,8.333e-05,2]
[397243901,1765159843692,-936.21,8.333e-05,2]
[397243903,1765159843702,-998.95,8.333e-05,2]
[397243905,1765159843712,-492.1009588,8.333e-05,2]
[397243907,1765159843724,-521.1290412,8.333e-05,2]
[397243909,1765159843734,-500.0,8.333e-05,2]
[397243911,1765159843743,-500.0,8.333e-05,2]
[397243913,1765159843753,-1073.92,8.333e-05,2]
[397243914,1765159843763,-500.0,8.333e-05,2]
[397243916,1765159843772,-500.0,8.333e-05,2]
[397243918,1765159843782,-1758.92,8.333e-05,2]
[397243920,1765159843791,-500.0,8.333e-05,2]
[397243922,1765159843800,-500.83066673,8.333e-05,2]
[397243924,1765159843810,-881.39,8.333e-05,2]
[397243926,1765159843819,-501.40927196,8.333e-05,2]
[397243928,1765159843829,-625.25,8.333e-05,2]
[397243930,1765159843839,-500.0,8.333e-05,2]
[397243932,1765159843848,-2517.63,8.333e-05,2]
[397243933,1765159843857,-1014.85,8.333e-05,2]
[397243935,1765159843866,-500.0,8.333e-05,2]
[397243937,1765159843875,-1750.9,8.333e-05,2]
[397243939,1765159843885,-623.7,8.333e-05,2]
[397243941,1765159843895,-500.0,8.333e-05,2]
[397243943,1765159843904,-500.0,8.333e-05,2]
[397243945,1765159843913,-715.72,8.333e-05,2]
[397243947,1765159843922,-500.0,8.333e-05,2]
[397243949,1765159843932,-500.0,8.333e-05,2]
[397243951,1765159843941,-500.0,8.333e-05,2]
[397243952,1765159843951,-500.0,8.333e-05,2]
[397243954,1765159843960,-500.0,8.333e-05,2]
[397243956,1765159843970,-1751.28,8.333e-05,2]
[397243958,1765159843986,-500.0,8.333e-05,2]
[397243960,1765159843996,-2091.47,8.333e-05,2]
[397243962,1765159844006,-501.05155952,8.333e-05,2]
[397243964,1765159844016,-1270.11,8.333e-05,2]
[397243966,1765159844027,-500.0,8.333e-05,2]
[397243968,1765159844036,-714.51,8.333e-05,2]
[397243970,1765159844047,-500.0,8.333e-05,2]
[397243972,1765159844057,-738.94746343,8.333e-05,2]
[397243974,1765159844078,-398.076,8.333e-05,2]
[397244065,1765159844969,-427.57653657,8.333e-05,2]
[397244067,1765159844979,-500.0,8.333e-05,2]
[397244069,1765159844988,-500.0,8.333e-05,2]
[397244071,1765159844998,-1257.87,8.333e-05,2]
[397244073,1765159845008,-500.0,8.333e-05,2]
[397244075,1765159845018,-891.19,8.333e-05,2]
[397244077,1765159845028,-500.0,8.333e-05,2]
[397244079,1765159845038,-5053.71,8.333e-05,2]
[397244081,1765159845049,-500.0,8.333e-05,2]
[397244083,1765159845058,-500.0,8.333e-05,2]
[397244085,1765159845067,-500.0,8.333e-05,2]
[397244087,1765159845078,-590.14,8.333e-05,2]
[397244089,1765159845087,-630.26,8.333e-05,2]
[397244091,1765159845097,-750.11,8.333e-05,2]
[397244093,1765159845106,-640.68,8.333e-05,2]
[397244095,1765159845116,-1314.18,8.333e-05,2]
[397244097,1765159845125,-2867.07,8.333e-05,2]
[397244099,1765159845134,-500.0,8.333e-05,2]
[397244101,1765159845143,-500.0,8.333e-05,2]
[397244103,1765159845153,-500.0,8.333e-05,2]
[397244105,1765159845162,-500.0,8.333e-05,2]
[397244107,1765159845171,-1726.51,8.333e-05,2]
[397244109,1765159845180,-673.18,8.333e-05,2]
[397244111,1765159845189,-1058.49,8.333e-05,2]
[397244112,1765159845198,-540.31,8.333e-05,2]
[397244114,1765159845207,-1026.3,8.333e-05,2]
[397244116,1765159845217,-500.0,8.333e-05,2]
[397244118,1765159845226,-500.0,8.333e-05,2]
[397244120,1765159845235,-501.448041,8.333e-05,2]
[397244122,1765159845244,-500.0,8.333e-05,2]
[397244124,1765159845253,-717.24,8.333e-05,2]
[397244126,1765159845262,-1048.91,8.333e-05,2]
[397244128,1765159845271,-500.0,8.333e-05,2]
[397244130,1765159845281,-500.0,8.333e-05,2]
[397244132,1765159845290,-625.8,8.333e-05,2]
[397244134,1765159845300,-501.858276,8.333e-05,2]
[397244136,1765159845312,-1722.65,8.333e-05,2]
[397244138,1765159845322,-500.0,8.333e-05,2]
[397244140,1765159845331,-500.0,8.333e-05,2]
[397244142,1765159845341,-500.0,8.333e-05,2]
[397244144,1765159845351,-636.94,8.333e-05,2]
[397244146,1765159845361,-845.64,8.333e-05,2]
[397244148,1765159845371,-711.04,8.333e-05,2]
[397244150,1765159845380,-500.0,8.333e-05,2]
[397244152,1765159845390,-627.6,8.333e-05,2]
[397244154,1765159845399,-500.0,8.333e-05,2]
[397244156,1765159845410,-502.3470989,8.333e-05,2]
[397244158,1765159845421,-500.0,8.333e-05,2]
[397244160,1765159845433,-745.39,8.333e-05,2]
[397244162,1765159845442,-1237.26,8.333e-05,2]
[397244164,1765159845451,-500.0,8.333e-05,2]
[397244166,1765159845461,-500.0,8.333e-05,2]
[397244168,1765159845470,-500.0,8.333e-05,2]
[397244170,1765159845479,-1166.14,8.333e-05,2]
[397244172,1765159845489,-500.0,8.333e-05,2]
[397244174,1765159845498,-903.14,8.333e-05,2]
[397244176,1765159845508,-1376.25,8.333e-05,2]
[397244178,1765159845517,-65.50440465,8.333e-05,2]
[397244419,1765159847887,-427.30238216,8.33e-05,2]
[397244422,1765159847914,-72.69761784,8.33e-05,2]
[397244424,1765159847924,-434.49559535,8.333e-05,2]
[397244426,1765159847935,-500.0,8.333e-05,2]
[397244428,1765159847946,-514.1479235,8.333e-05,2]
[397244431,1765159847957,-3124.55595651,8.333e-05,2]
[397250668,1765159915749,6279.0,0.00021,99]
[397260800,1765160745117,-150.0,6.797e-05,2]
[397260801,1765160745138,-117.5038358,6.797e-05,2]
[397260805,1765160846988,404.38850712,0.0001,3]
[397260810,1765160943609,250.0,9.999e-05,3]
[397260811,1765160948166,-91.4961642,6.797e-05,2]
[397260812,1765160948189,-150.0,6.802e-05,2]
[397260813,1765160948211,-256.68671895,6.838e-05,2]
[397260814,1765160948232,-167.2102269,7.104e-05,2]
[397260815,1765160948253,-160.28,7.128e-05,2]
[397260816,1765160948275,-240.42,7.452e-05,2]
[397260817,1765160948297,-320.57,7.776e-05,2]
[397260818,1765160948318,-1371.94260115,7.863e-05,2]
[397260819,1765160948340,-400.71,8.1e-05,2]
[397260820,1765160948360,-1371.94260115,8.15e-05,2]
[397260821,1765160948384,-1200.0,8.32e-05,2]
[397260822,1765160948404,-1200.0,8.32e-05,2]
[397260823,1765160948425,-500.0,8.32e-05,2]
[397260824,1765160948446,-500.0,8.32e-05,2]
[397260825,1765160948465,-500.0,8.32e-05,2]
[397260826,1765160948484,-289.50586811,8.32e-05,2]
[397260827,1765160948504,-500.0,8.32e-05,2]
[397260828,1765160948527,-372.9255052,8.32e-05,2]
[397260829,1765160948548,-500.0,8.32e-05,2]
[397260830,1765160948569,-500.0,8.32e-05,2]
[397260831,1765160948588,-500.0,8.32e-05,2]
[397260832,1765160948608,-356.2126949,8.32e-05,2]
[397260833,1765160948627,-500.0,8.32e-05,2]
[397260834,1765160948652,-500.0,8.32e-05,2]
[397260835,1765160948673,-500.0,8.32e-05,2]
[397260836,1765160948694,-620.69659212,8.32e-05,2]
[397260837,1765160948713,-300.0,8.321e-05,2]
[397260838,1765160948747,-300.0,8.321e-05,2]
[397260839,1765160948770,-300.0,8.321e-05,2]
[397260840,1765160948795,-4808.88,8.324e-05,2]
[397260841,1765160948817,-905.72,8.324e-05,2]
[397260842,1765160948840,-557.72,8.324e-05,2]
[397260843,1765160948862,-271.07269742,8.324e-05,2]
[397260844,1765160948883,-500.0,8.325e-05,2]
[397260845,1765160948903,-5791.35,8.325e-05,2]
[397260846,1765160948926,-4064.79,8.325e-05,2]
[397260847,1765160948949,-1179.56,8.325e-05,2]
[397260848,1765160948970,-500.0,8.325e-05,2]
[397260849,1765160948993,-6351.26,8.325e-05,2]
[397260850,1765160949014,-614.02,8.325e-05,2]
[397260851,1765160949036,-500.0,8.325e-05,2]
[397260852,1765160949058,-1689.77,8.325e-05,2]
[397260853,1765160949079,-1007.28,8.325e-05,2]
[397260854,1765160949099,-1651.7,8.325e-05,2]
[397260855,1765160949119,-509.93,8.325e-05,2]
[397260856,1765160949139,-1642.01,8.325e-05,2]
[397260857,1765160949164,-3132.0,8.325e-05,2]
[397260858,1765160949186,-1417.9,8.325e-05,2]
[397260859,1765160949207,-719.47,8.325e-05,2]
[397260860,1765160949226,-612.24,8.325e-05,2]
[397260861,1765160949246,-5888.31,8.325e-05,2]
[397260862,1765160949266,-584.24,8.325e-05,2]
[397260863,1765160949285,-963.11,8.325e-05,2]
[397260864,1765160949305,-600.4,8.325e-05,2]
[397260865,1765160949325,-1072.91,8.325e-05,2]
[397260866,1765160949346,-695.26,8.325e-05,2]
[397260867,1765160949366,-2164.37,8.325e-05,2]
[397260868,1765160949387,-3481.15,8.325e-05,2]
[397260869,1765160949408,-2102.65,8.325e-05,2]
[397260870,1765160949433,-593.57,8.325e-05,2]
[397260871,1765160949457,-1279.25,8.325e-05,2]
[397260872,1765160949478,-500.0,8.325e-05,2]
[397260873,1765160949498,-500.0,8.325e-05,2]
[397260874,1765160949519,-642.41,8.325e-05,2]
[397260875,1765160949540,-500.0,8.325e-05,2]
[397260876,1765160949562,-919.38,8.325e-05,2]
[397260877,1765160949869,-840.84,8.325e-05,2]
[397260878,1765160949890,-784.77,8.326e-05,2]
[397260879,1765160949911,-1453.6,8.326e-05,2]
[397260880,1765160949930,-500.0,8.326e-05,2]
[397260881,1765160949949,-572.06,8.326e-05,2]
[397260882,1765160949970,-500.0,8.326e-05,2]
[397260883,1765160949990,-561.01,8.326e-05,2]
[397260884,1765160950011,-572.93,8.326e-05,2]
[397260885,1765160950030,-500.0,8.326e-05,2]
[397260886,1765160950050,-506.4,8.326e-05,2]
[397260887,1765160950068,-281.74331589,8.326e-05,2]
[397260888,1765160950086,-500.0,8.326e-05,2]
[397260889,1765160950104,-500.0,8.326e-05,2]
[397260890,1765160950124,-1156.1,8.326e-05,2]
[397260891,1765160950145,-524.4,8.326e-05,2]
[397260892,1765160950165,-725.0,8.326e-05,2]
[397260893,1765160950185,-152.36524653,8.326e-05,2]
[397260894,1765160950204,-897.21,8.326e-05,2]
[397260895,1765160950222,-500.0,8.326e-05,2]
[397260896,1765160950241,-500.0,8.326e-05,2]
[397260897,1765160950260,-500.0,8.326e-05,2]
[397260898,1765160950279,-844.67,8.326e-05,2]
[397260899,1765160950297,-500.0,8.326e-05,2]
[397260900,1765160950316,-500.0,8.326e-05,2]
[397260901,1765160950335,-500.0,8.326e-05,2]
[397260902,1765160950354,-790.32,8.326e-05,2]
[397260903,1765160950374,-500.0,8.326e-05,2]
[397260904,1765160950394,-500.0,8.326e-05,2]
[397260905,1765160950413,-1217.19,8.326e-05,2]
[397260906,1765160950431,-1499.41,8.326e-05,2]
[397260907,1765160950450,-1029.18,8.326e-05,2]
[397260908,1765160950469,-1603.12,8.326e-05,2]
[397260909,1765160950488,-1685.63,8.326e-05,2]
[397260910,1765160950507,-500.67769499,8.326e-05,2]
[397260911,1765160950526,-613.99,8.326e-05,2]
[397260912,1765160950544,-656.05,8.326e-05,2]
[397260913,1765160950562,-890.55,8.326e-05,2]
[397260914,1765160950581,-1338.46,8.326e-05,2]
[397260915,1765160950601,-500.0,8.326e-05,2]
[397260916,1765160950620,-500.51044099,8.326e-05,2]
[397260917,1765160950639,-597.72,8.326e-05,2]
[397260918,1765160950661,-1025.39,8.326e-05,2]
[397260919,1765160950680,-645.13,8.326e-05,2]
[397260920,1765160950699,-500.0,8.326e-05,2]
[397260921,1765160950717,-1878.69,8.326e-05,2]
[397260922,1765160950735,-500.0,8.326e-05,2]
[397260923,1765160950758,-1678.31,8.326e-05,2]
[397260924,1765160950777,-709.17,8.326e-05,2]
[397260925,1765160950796,-311.5268345,8.326e-05,2]
[397260926,1765160950815,-2457.56,8.326e-05,2]
[397260927,1765160950844,-500.0,8.326e-05,2]
[397260928,1765160950863,-500.0,8.326e-05,2]
[397260929,1765160950883,-687.36,8.326e-05,2]
[397260930,1765160950902,-500.0,8.326e-05,2]
[397260931,1765160950922,-2138.72,8.326e-05,2]
[397260932,1765160950943,-1005.21,8.326e-05,2]
[397260933,1765160950961,-500.0,8.326e-05,2]
[397260934,1765160950981,-500.0,8.326e-05,2]
[397260935,1765160951001,-500.0,8.326e-05,2]
[397260936,1765160951020,-500.0,8.326e-05,2]
[397260937,1765160951039,-1654.57,8.326e-05,2]
[397260938,1765160951058,-2004.32,8.326e-05,2]
[397260939,1765160951077,-517.8,8.326e-05,2]
[397260940,1765160951096,-500.0,8.326e-05,2]
[397260941,1765160951115,-1113.45,8.326e-05,2]
[397260942,1765160951140,-1185.71,8.326e-05,2]
[397260943,1765160951158,-865.51,8.326e-05,2]
[397260944,1765160951177,-500.0,8.326e-05,2]
[397260945,1765160951196,-500.0,8.326e-05,2]
[397260946,1765160951216,-4843.14,8.326e-05,2]
[397260947,1765160951234,-388.68961338,8.326e-05,2]
[397260948,1765160951254,-500.0,8.326e-05,2]
[397260949,1765160951273,-681.41,8.326e-05,2]
[397260950,1765160951293,-1307.8,8.326e-05,2]
[397260951,1765160951313,-2747.61,8.326e-05,2]
[397260952,1765160951333,-500.0,8.326e-05,2]
[397260953,1765160951352,-500.0,8.326e-05,2]
[397260954,1765160951371,-500.0,8.326e-05,2]
[397260955,1765160951391,-1318.91,8.326e-05,2]
[397260956,1765160951410,-945.63,8.326e-05,2]
[397260957,1765160951431,-227.44783429,8.326e-05,2]
[397260958,1765160951452,-983.54,8.326e-05,2]
[397260959,1765160951471,-500.0,8.326e-05,2]
[397260960,1765160951490,-500.0,8.326e-05,2]
[397260961,1765160951509,-613.32,8.326e-05,2]
[397260962,1765160951528,-1136.03,8.326e-05,2]
[397260963,1765160951548,-500.0,8.326e-05,2]
[397260964,1765160951568,-3374.26,8.326e-05,2]
[397260965,1765160951587,-527.86,8.326e-05,2]
[397260966,1765160951607,-3508.24,8.326e-05,2]
[397260967,1765160951626,-1205.63,8.326e-05,2]
[397260968,1765160951645,-500.0,8.326e-05,2]
[397260969,1765160951665,-1650.87,8.326e-05,2]
[397260970,1765160951684,-1033.51,8.326e-05,2]
[397260971,1765160951703,-960.31,8.326e-05,2]
[397260972,1765160951723,-500.86971831,8.326e-05,2]
[397260973,1765160951743,-1341.29,8.326e-05,2]
[397260974,1765160951766,-5839.12,8.326e-05,2]
[397260975,1765160951785,-810.4,8.326e-05,2]
[397260976,1765160951807,-1367.78,8.326e-05,2]
[397260977,1765160951838,-500.0,8.327e-05,2]
[397260978,1765160951858,-500.0,8.327e-05,2]
[397260979,1765160951877,-500.0,8.327e-05,2]
[397260980,1765160951908,-500.0,8.327e-05,2]
[397260981,1765160951928,-500.0,8.327e-05,2]
[397260982,1765160951947,-500.0,8.327e-05,2]
[397260983,1765160951966,-500.0,8.327e-05,2]
[397260984,1765160951986,-500.0,8.327e-05,2]
[397260985,1765160952009,-535.72,8.327e-05,2]
[397260986,1765160952027,-500.0,8.327e-05,2]
[397260987,1765160952046,-509.79,8.327e-05,2]
[397260988,1765160952065,-500.0,8.327e-05,2]
[397260989,1765160952084,-214.4328726,8.327e-05,2]
[397260990,1765160952103,-651.23,8.327e-05,2]
[397260991,1765160952122,-500.0,8.327e-05,2]
[397260992,1765160952142,-500.0,8.327e-05,2]
[397260993,1765160952162,-500.0,8.327e-05,2]
[397260994,1765160952182,-501.45203975,8.327e-05,2]
[397260995,1765160952216,-500.0,8.327e-05,2]
[397260996,1765160952238,-177.00640605,8.327e-05,2]
[397260997,1765160952258,-500.0,8.327e-05,2]
[397260998,1765160952278,-500.0,8.327e-05,2]
[397260999,1765160952298,-500.0,8.327e-05,2]
[397261000,1765160952318,-868.38,8.327e-05,2]
[397261001,1765160952338,-500.0,8.327e-05,2]
[397261002,1765160952358,-500.0,8.327e-05,2]
[397261003,1765160952378,-500.0,8.327e-05,2]
[397261004,1765160952400,-500.0,8.327e-05,2]
[397261005,1765160952419,-500.0,8.327e-05,2]
[397261006,1765160952439,-500.0,8.327e-05,2]
[397261007,1765160952461,-500.0,8.327e-05,2]
[397261008,1765160952481,-685.9,8.327e-05,2]
[397261009,1765160952501,-500.0,8.327e-05,2]
[397261010,1765160952521,-646.97093772,8.327e-05,2]
[397261011,1765160952541,-971.01,8.327e-05,2]
[397261012,1765160952561,-500.0,8.327e-05,2]
[397261013,1765160952582,-500.0,8.327e-05,2]
[397261014,1765160952601,-500.0,8.327e-05,2]
[397261015,1765160952621,-500.0,8.327e-05,2]